bitfinex/quotes_BTCUSD_20240613
["timestamp","ask_amount","ask_price","bid_price","bid_amount"]
[1718278400826,0.43719694,67919.0,67918.0,0.000946]
[1718278401056,0.42319694,67919.0,67918.0,0.000946]
[1718278401255,0.43719694,67919.0,67918.0,0.000946]
[1718278401639,0.37612192,67919.0,67918.0,0.000946]
[1718278401844,0.43719729,67919.0,67918.0,0.000946]
[1718278402020,0.37612192,67919.0,67918.0,0.000946]
[1718278402224,0.43719723,67919.0,67918.0,0.000946]
[1718278402453,0.37849723,67919.0,67918.0,0.000946]
[1718278402651,0.46099723,67919.0,67918.0,0.000946]
[1718278403283,0.33339524,67919.0,67918.0,0.000946]
[1718278403496,0.27231993,67919.0,67918.0,0.107946]
[1718278403836,0.25831993,67919.0,67918.0,0.107946]
[1718278404033,0.27231993,67919.0,67918.0,0.107946]
[1718278404631,0.24431993,67919.0,67918.0,0.107946]
[1718278404966,0.25831993,67919.0,67918.0,0.107946]
[1718278405214,0.25831993,67919.0,67918.0,0.20789715]
[1718278405456,0.25831993,67919.0,67918.0,0.107946]
[1718278406240,0.27231993,67919.0,67918.0,0.20789715]
[1718278406828,0.028,67919.0,67918.0,0.34852921]
[1718278407036,0.028,67919.0,67918.0,0.48292921]
[1718278407300,0.028,67919.0,67918.0,0.49292921]
[1718278407423,0.0147,67938.0,67930.0,0.06]
[1718278407626,0.14431993,67937.0,67932.0,0.14988321]
[1718278407872,0.14431993,67937.0,67935.0,0.09995115]
[1718278408033,0.14431993,67937.0,67936.0,0.25328321]
[1718278408236,0.14431993,67937.0,67936.0,0.15333206]
[1718278409606,0.14431993,67937.0,67936.0,0.04993206]
[1718278410001,0.14431993,67937.0,67931.0,0.1866]
[1718278410351,0.14431993,67937.0,67932.0,0.04993206]
[1718278410352,0.0707,67933.0,67932.0,0.04993206]
[1718278410562,0.21501993,67933.0,67932.0,0.001]
[1718278410765,0.21501993,67933.0,67932.0,0.05093206]
[1718278411170,0.21501993,67933.0,67932.0,0.04993206]
[1718278412353,0.22901993,67933.0,67932.0,0.05093206]
[1718278413189,0.15831993,67933.0,67932.0,0.33058321]
[1718278413385,0.16931993,67933.0,67932.0,0.23163206]
[1718278417524,0.16931993,67933.0,67932.0,0.05193206]
[1718278417730,0.19332192,67933.0,67932.0,0.002]
[1718278417948,0.19332192,67933.0,67932.0,0.05193206]
[1718278419999,0.19332192,67933.0,67932.0,0.002]
[1718278426613,0.37482192,67933.0,67932.0,0.002]
[1718278426785,0.45974379,67933.0,67932.0,0.002]
[1718278426993,0.52575397,67933.0,67932.0,0.002]
[1718278427578,0.44574379,67933.0,67932.0,0.001]
[1718278427797,0.44874379,67933.0,67932.0,0.001]
[1718278428228,0.3782694,67933.0,67932.0,0.001]
[1718278428438,0.3782694,67933.0,67931.0,0.1729]
[1718278428439,0.24517993,67933.0,67931.0,0.1729]
[1718278428634,0.24431993,67932.0,67924.0,0.07215996]
[1718278431224,0.06106269,67931.0,67924.0,0.07215996]
[1718278431469,0.18249192,67930.0,67924.0,0.07215996]
[1718278431652,0.18249192,67930.0,67922.0,0.04993206]
[1718278431653,0.16106445,67929.0,67922.0,0.04993206]
[1718278431815,0.20538438,67928.0,67922.0,0.04993206]
[1718278432017,0.1,67927.0,67922.0,0.04993206]
[1718278432180,0.14431993,67926.0,67922.0,0.04993206]
[1718278432800,0.17256912,67926.0,67922.0,0.04993206]
[1718278433039,0.17256912,67926.0,67919.0,0.097046]
[1718278433466,0.06106797,67925.0,67920.0,0.04993206]
[1718278433677,0.2053879,67924.0,67920.0,0.04993206]
[1718278433846,0.14431993,67924.0,67920.0,0.04993206]
[1718278434466,0.14431993,67924.0,67919.0,0.097046]
[1718278434467,0.14431993,67924.0,67922.0,0.04993206]
[1718278435065,0.15831993,67924.0,67922.0,0.04993206]
[1718278435302,0.14431993,67924.0,67922.0,0.04993206]
[1718278435514,0.18557684,67924.0,67922.0,0.04993206]
[1718278435741,0.19957684,67924.0,67922.0,0.04993206]
[1718278436265,0.17157684,67924.0,67922.0,0.04993206]
[1718278437481,0.18557684,67924.0,67922.0,0.04993206]
[1718278437883,0.17157684,67924.0,67922.0,0.04993206]
[1718278438401,0.19957684,67924.0,67922.0,0.04993206]
[1718278438796,0.18557684,67924.0,67922.0,0.04993206]
[1718278439206,0.19957684,67924.0,67922.0,0.04993206]
[1718278439710,0.03813768,67923.0,67922.0,0.04993206]
[1718278439906,0.18245761,67923.0,67922.0,0.04993206]
[1718278440110,0.18245761,67923.0,67919.0,0.14697806]
[1718278440331,0.03813768,67923.0,67922.0,0.04993206]
[1718278441316,0.03813768,67923.0,67919.0,0.097046]
[1718278441317,0.18245761,67923.0,67919.0,0.097046]
[1718278441523,0.17256569,67922.0,67919.0,0.000946]
[1718278441763,0.24431993,67922.0,67919.0,0.000946]
[1718278441979,0.14431993,67922.0,67919.0,0.000946]
[1718278443264,0.15831993,67922.0,67919.0,0.000946]
[1718278444580,0.17231993,67922.0,67919.0,0.000946]
[1718278446419,0.01723199,67921.0,67919.0,0.000946]
[1718278446773,0.14431993,67920.0,67919.0,0.000946]
[1718278448318,0.15831993,67920.0,67919.0,0.000946]
[1718278448990,0.17231993,67920.0,67919.0,0.000946]
[1718278449618,0.34801993,67920.0,67919.0,0.000946]
[1718278449830,0.39426875,67920.0,67919.0,0.000946]
[1718278450247,0.89426875,67920.0,67919.0,0.000946]
[1718278450474,0.93830503,67920.0,67919.0,0.000946]
[1718278450686,1.31311227,67920.0,67919.0,0.000946]
[1718278450906,1.71011015,67920.0,67919.0,0.000946]
[1718278451409,1.79818644,67920.0,67919.0,0.000946]
[1718278451823,1.69611387,67920.0,67919.0,0.000946]
[1718278452037,1.68211387,67920.0,67919.0,0.000946]
[1718278452233,1.81504528,67920.0,67919.0,0.000946]
[1718278452645,1.52365326,67920.0,67919.0,0.000946]
[1718278452908,1.82907506,67920.0,67919.0,0.000946]
[1718278453355,1.79819091,67920.0,67919.0,0.000946]
[1718278453573,1.80854278,67920.0,67919.0,0.000946]
[1718278453812,1.76229396,67920.0,67919.0,0.000946]
[1718278454757,1.76229151,67920.0,67919.0,0.000946]
[1718278455202,1.67424425,67920.0,67919.0,0.000946]
[1718278455556,1.76229151,67920.0,67919.0,0.000946]
[1718278455773,1.67424425,67920.0,67919.0,0.000946]
[1718278455952,1.90661144,67920.0,67919.0,0.000946]
[1718278456302,1.81856418,67920.0,67919.0,0.000946]
[1718278456748,1.40191108,67920.0,67919.0,0.000946]
[1718278456916,1.81908376,67920.0,67919.0,0.000946]
[1718278457355,1.49286975,67920.0,67919.0,0.000946]
[1718278457554,1.55887965,67920.0,67919.0,0.000946]
[1718278457743,1.55887932,67920.0,67919.0,0.000946]
[1718278459338,1.49286975,67920.0,67919.0,0.000946]
[1718278459562,1.49288609,67920.0,67919.0,0.000946]
[1718278459767,1.53688476,67920.0,67919.0,0.000946]
[1718278460331,1.49288609,67920.0,67919.0,0.000946]
[1718278461063,1.55889566,67920.0,67919.0,0.000946]
[1718278462070,1.61781766,67920.0,67919.0,0.000946]
[1718278462935,1.87802544,67920.0,67919.0,0.000946]
[1718278463138,1.55180809,67920.0,67919.0,0.000946]
[1718278463352,1.61781012,67920.0,67919.0,0.000946]
[1718278463795,1.55117555,67920.0,67919.0,0.000946]
[1718278464393,1.53344368,67920.0,67919.0,0.000946]
[1718278465218,1.51944368,67920.0,67919.0,0.000946]
[1718278465597,1.60777368,67920.0,67919.0,0.000946]
[1718278465796,1.62177413,67920.0,67919.0,0.000946]
[1718278465994,1.94800212,67920.0,67919.0,0.000946]
[1718278466195,2.05801807,67920.0,67919.0,0.000946]
[1718278466601,2.04401807,67920.0,67919.0,0.000946]
[1718278466896,0.08833,67916.0,67913.0,0.20861535]
[1718278467106,0.26831993,67914.0,67913.0,0.20861535]
[1718278467312,1.09914863,67914.0,67913.0,0.20861535]
[1718278467518,1.11331019,67914.0,67913.0,0.20861535]
[1718278467726,1.11334149,67914.0,67913.0,0.20861535]
[1718278467950,0.8754435,67914.0,67913.0,0.20861535]
[1718278468175,1.00625522,67914.0,67913.0,0.20861535]
[1718278468403,1.05024909,67914.0,67913.0,0.20861535]
[1718278468599,1.05024876,67914.0,67913.0,0.20861535]
[1718278468853,1.02025522,67914.0,67913.0,0.20861535]
[1718278470448,1.086245,67914.0,67913.0,0.20861535]
[1718278470662,1.02025522,67914.0,67913.0,0.20861535]
[1718278470875,1.0202558,67914.0,67913.0,0.20861535]
[1718278471082,1.0342558,67914.0,67913.0,0.20861535]
[1718278474392,1.10024379,67914.0,67913.0,0.20861535]
[1718278474822,1.10024385,67914.0,67913.0,0.20861535]
[1718278475276,1.03425586,67914.0,67913.0,0.20861535]
[1718278475825,1.36934587,67914.0,67913.0,0.20861535]
[1718278476083,1.45733225,67914.0,67913.0,0.20861535]
[1718278476274,1.44849381,67914.0,67913.0,0.20861535]
[1718278476454,1.1004532,67914.0,67913.0,0.1498703]
[1718278477083,1.0344559,67914.0,67913.0,0.1498703]
[1718278477965,1.44349765,67914.0,67913.0,0.1498703]
[1718278478088,1.53148403,67914.0,67913.0,0.1498703]
[1718278478556,1.44349765,67914.0,67913.0,0.1498703]
[1718278480173,1.46134487,67914.0,67913.0,0.1498703]
[1718278480863,1.46135448,67914.0,67913.0,0.1498703]
[1718278481073,1.48723293,67914.0,67913.0,0.1162403]
[1718278481298,1.5972159,67914.0,67913.0,0.1162403]
[1718278481518,1.72294193,67914.0,67913.0,0.1162403]
[1718278481730,1.68687893,67914.0,67913.0,0.1162403]
[1718278481939,1.68688287,67914.0,67913.0,0.1162403]
[1718278482214,0.5,67897.0,67893.0,0.07215996]
[1718278482463,0.5,67897.0,67896.0,0.53225979]
[1718278482650,0.6708,67897.0,67896.0,0.0993]
[1718278482860,0.6938,67897.0,67887.0,0.0763]
[1718278483076,0.6938,67897.0,67887.0,0.1775]
[1718278483077,0.0708,67888.0,67887.0,0.1775]
[1718278483475,0.21511993,67888.0,67887.0,0.1775]
[1718278485271,0.31511993,67888.0,67887.0,0.1775]
[1718278485742,0.32911993,67888.0,67887.0,0.1775]
[1718278486316,0.34311993,67888.0,67887.0,0.1775]
[1718278486511,0.42743192,67888.0,67887.0,0.1775]
[1718278488346,0.41343192,67888.0,67887.0,0.1775]
[1718278489174,0.42743192,67888.0,67887.0,0.1775]
[1718278489624,0.42743192,67888.0,67887.0,0.1012]
[1718278490060,0.41343192,67888.0,67887.0,0.1012]
[1718278490441,0.39943192,67888.0,67887.0,0.1012]
[1718278490841,0.41343192,67888.0,67887.0,0.1012]
[1718278491486,0.42743192,67888.0,67887.0,0.1012]
[1718278492110,0.41343192,67888.0,67887.0,0.1012]
[1718278492523,0.42743192,67888.0,67887.0,0.1012]
[1718278493143,0.41343192,67888.0,67887.0,0.1012]
[1718278493309,0.42743192,67888.0,67887.0,0.1012]
[1718278494734,0.41343192,67888.0,67887.0,0.1012]
[1718278495154,0.42743192,67888.0,67887.0,0.1012]
[1718278495569,0.45043192,67888.0,67884.0,0.0962]
[1718278495819,0.0708,67885.0,67884.0,0.0962]
[1718278496022,0.21511993,67885.0,67884.0,0.0962]
[1718278496225,0.31511993,67885.0,67884.0,0.0962]
[1718278498126,0.32911993,67885.0,67884.0,0.0962]
[1718278499820,0.34311993,67885.0,67884.0,0.0962]
[1718278500033,0.43858225,67885.0,67884.0,0.0962]
[1718278500452,0.36778225,67885.0,67884.0,0.0962]
[1718278500670,0.27231993,67885.0,67884.0,0.1733]
[1718278500878,0.128,67885.0,67884.0,0.1733]
[1718278501083,0.128,67885.0,67884.0,0.34325115]
[1718278501084,0.028,67885.0,67884.0,0.34325115]
[1718278501296,0.028,67885.0,67884.0,0.47398321]
[1718278501727,0.5,67905.0,67901.0,0.09995115]
[1718278501964,0.21511993,67904.0,67902.0,0.1859]
[1718278502379,0.14431993,67904.0,67902.0,0.1859]
[1718278502614,0.21511993,67904.0,67902.0,0.1859]
[1718278503027,0.1,67903.0,67902.0,0.1859]
[1718278503275,0.24431993,67903.0,67902.0,0.1859]
[1718278504844,0.27905606,67903.0,67902.0,0.1859]
[1718278505041,0.34014538,67903.0,67902.0,0.1859]
[1718278505456,0.21940925,67903.0,67902.0,0.30585115]
[1718278505658,0.15831993,67903.0,67902.0,0.30585115]
[1718278505870,0.15831993,67903.0,67902.0,0.35585115]
[1718278505871,0.014,67903.0,67902.0,0.35585115]
[1718278506078,0.026,67903.0,67902.0,0.35685115]
[1718278506276,0.012,67903.0,67902.0,0.35685115]
[1718278506421,0.026,67903.0,67902.0,0.35685115]
[1718278506831,0.012,67903.0,67902.0,0.35685115]
[1718278507241,0.026,67903.0,67902.0,0.1869]
[1718278507821,0.17031993,67903.0,67902.0,0.1869]
[1718278520368,0.18930728,67903.0,67902.0,0.1869]
[1718278521273,0.21617801,67903.0,67902.0,0.1869]
[1718278523462,0.21617801,67903.0,67902.0,0.001]
[1718278523679,0.38697801,67903.0,67902.0,0.001]
[1718278524151,0.44806997,67903.0,67902.0,0.001]
[1718278525306,0.38697801,67903.0,67902.0,0.001]
[1718278525521,0.44807213,67903.0,67902.0,0.001]
[1718278526388,0.44749916,67903.0,67902.0,0.001]
[1718278528188,0.35068843,67903.0,67902.0,0.001]
[1718278528401,0.42148843,67903.0,67902.0,0.001]
[1718278529275,0.50937275,67903.0,67902.0,0.001]
[1718278529492,0.66586676,67903.0,67902.0,0.001]
[1718278529705,0.72695992,67903.0,67902.0,0.001]
[1718278530100,0.82096556,67903.0,67902.0,0.001]
[1718278530626,0.80197821,67903.0,67902.0,0.001]
[1718278531045,0.80197517,67903.0,67902.0,0.001]
[1718278531273,0.88986779,67903.0,67902.0,0.001]
[1718278531480,0.5,67894.0,67887.0,0.04993206]
[1718278531680,0.0708,67888.0,67885.0,0.43390579]
[1718278531887,0.14431993,67887.0,67885.0,0.000946]
[1718278532301,0.16110104,67886.0,67885.0,0.000946]
[1718278532567,0.30542086,67886.0,67885.0,0.000946]
[1718278532744,0.34304295,67886.0,67885.0,0.000946]
[1718278533205,0.30542086,67886.0,67885.0,0.000946]
[1718278533461,0.24431993,67886.0,67885.0,0.000946]
[1718278533981,0.514,67894.0,67889.0,0.09995115]
[1718278533982,0.014,67894.0,67889.0,0.09995115]
[1718278534198,0.09607508,67902.0,67894.0,0.25455115]
[1718278534403,0.16109588,67901.0,67898.0,0.09995115]
[1718278534615,0.00086,67903.0,67899.0,0.1546]
[1718278534616,0.1,67900.0,67899.0,0.1546]
[1718278534819,0.00086,67903.0,67899.0,0.1546]
[1718278535232,0.14431993,67902.0,67899.0,0.1546]
[1718278535434,0.1,67901.0,67899.0,0.1546]
[1718278535637,0.14431993,67900.0,67899.0,0.1546]
[1718278535848,0.24431993,67900.0,67899.0,0.1546]
[1718278536681,0.27199482,67900.0,67899.0,0.1546]
[1718278537735,0.28599482,67900.0,67899.0,0.1546]
[1718278538387,0.25831993,67900.0,67899.0,0.1546]
[1718278538596,0.25831993,67900.0,67899.0,0.27455115]
[1718278539014,0.27231993,67900.0,67899.0,0.25455115]
[1718278539189,0.27231993,67900.0,67899.0,0.1546]
[1718278548373,0.29102439,67900.0,67899.0,0.1546]
[1718278552447,0.27231993,67900.0,67899.0,0.1546]
[1718278552697,0.028,67900.0,67899.0,0.32448321]
[1718278552938,0.028,67900.0,67899.0,0.20453206]
[1718278554831,0.028,67900.0,67899.0,0.20547806]
[1718278560689,0.17231993,67900.0,67899.0,0.05087806]
[1718278562901,0.19860549,67900.0,67899.0,0.05087806]
[1718278563896,0.25969129,67900.0,67899.0,0.05087806]
[1718278564284,0.25969129,67900.0,67899.0,0.000946]
[1718278564497,1.01369129,67900.0,67899.0,0.000946]
[1718278564714,1.31915408,67900.0,67899.0,0.000946]
[1718278564935,1.45319902,67900.0,67899.0,0.000946]
[1718278565164,1.40912543,67900.0,67899.0,0.000946]
[1718278565612,1.31916236,67900.0,67899.0,0.000946]
[1718278566032,1.01369129,67900.0,67899.0,0.000946]
[1718278566252,1.31916094,67900.0,67899.0,0.000946]
[1718278566650,1.01369129,67900.0,67899.0,0.000946]
[1718278566854,1.31915995,67900.0,67899.0,0.000946]
[1718278567288,1.01369129,67900.0,67899.0,0.000946]
[1718278568220,1.45359741,67900.0,67899.0,0.000946]
[1718278568444,1.38625567,67900.0,67899.0,0.000946]
[1718278569049,1.08078021,67900.0,67899.0,0.000946]
[1718278569400,1.52063641,67900.0,67899.0,0.000946]
[1718278569634,1.84691546,67900.0,67899.0,0.000946]
[1718278570027,1.94313776,67900.0,67899.0,0.000946]
[1718278570187,1.93797524,67900.0,67899.0,0.000946]
[1718278570393,1.94313776,67900.0,67899.0,0.000946]
[1718278570597,1.86611039,67900.0,67899.0,0.000946]
[1718278571049,1.97117017,67900.0,67899.0,0.000946]
[1718278571192,1.86094787,67900.0,67899.0,0.000946]
[1718278571396,1.96231946,67900.0,67899.0,0.000946]
[1718278572111,1.94831946,67900.0,67899.0,0.000946]
[1718278572941,1.83811039,67900.0,67899.0,0.000946]
[1718278573407,1.85211039,67900.0,67899.0,0.000946]
[1718278573610,1.9628698,67900.0,67899.0,0.000946]
[1718278573945,1.85267293,67900.0,67899.0,0.000946]
[1718278574137,1.79157237,67900.0,67899.0,0.000946]
[1718278574342,1.86666504,67900.0,67899.0,0.000946]
[1718278574749,1.97684985,67900.0,67899.0,0.000946]
[1718278575153,1.95486292,67900.0,67899.0,0.000946]
[1718278575749,1.88406292,67900.0,67899.0,0.000946]
[1718278575954,1.95486292,67900.0,67899.0,0.000946]
[1718278576366,1.86672312,67900.0,67899.0,0.000946]
[1718278576998,1.86671814,67900.0,67899.0,0.000946]
[1718278578074,1.86671765,67900.0,67899.0,0.000946]
[1718278579313,1.95483963,67900.0,67899.0,0.000946]
[1718278579541,1.9809824,67900.0,67899.0,0.000946]
[1718278579972,1.67548192,67900.0,67899.0,0.000946]
[1718278580169,2.18098098,67900.0,67899.0,0.000946]
[1718278582118,2.16178605,67900.0,67899.0,0.000946]
[1718278582596,1.74736398,67900.0,67899.0,0.000946]
[1718278582797,1.7743926,67900.0,67899.0,0.000946]
[1718278583023,2.16131376,67900.0,67899.0,0.000946]
[1718278583197,2.16131431,67900.0,67899.0,0.000946]
[1718278583415,2.07318678,67900.0,67899.0,0.000946]
[1718278583967,1.8558147,67900.0,67899.0,0.000946]
[1718278584179,2.16131406,67900.0,67899.0,0.000946]
[1718278584403,2.07318653,67900.0,67899.0,0.000946]
[1718278585076,1.76768717,67900.0,67899.0,0.000946]
[1718278585286,2.073186,67900.0,67899.0,0.000946]
[1718278586800,2.17884353,67900.0,67899.0,0.000946]
[1718278587126,2.090716,67900.0,67899.0,0.000946]
[1718278587376,2.00050736,67900.0,67899.0,0.000946]
[1718278587544,2.09096192,67900.0,67899.0,0.000946]
[1718278587955,2.17907813,67900.0,67899.0,0.000946]
[1718278588179,2.17908429,67900.0,67899.0,0.000946]
[1718278589477,2.09980757,67900.0,67899.0,0.000946]
[1718278589684,2.17908043,67900.0,67899.0,0.000946]
[1718278590047,1.79430258,67900.0,67899.0,0.000946]
[1718278590243,2.09981064,67900.0,67899.0,0.000946]
[1718278590446,2.17908109,67900.0,67899.0,0.000946]
[1718278590933,1.76466947,67900.0,67899.0,0.000946]
[1718278591135,2.09096988,67900.0,67899.0,0.000946]
[1718278591331,2.10827982,67900.0,67899.0,0.000946]
[1718278591538,2.09096988,67900.0,67899.0,0.000946]
[1718278591956,1.83075022,67900.0,67899.0,0.000946]
[1718278592177,1.76466947,67900.0,67899.0,0.000946]
[1718278592377,2.1879209,67900.0,67899.0,0.000946]
[1718278592580,2.09097147,67900.0,67899.0,0.000946]
[1718278593110,0.5,67890.0,67885.0,0.000946]
[1718278593240,0.0708,67886.0,67885.0,0.000946]
[1718278593466,0.27621852,67886.0,67885.0,0.000946]
[1718278593678,0.37621852,67886.0,67885.0,0.000946]
[1718278594896,0.68175139,67886.0,67885.0,0.000946]
[1718278595102,0.77117999,67886.0,67885.0,0.000946]
[1718278595304,0.92919518,67886.0,67885.0,0.000946]
[1718278595505,0.83977743,67886.0,67885.0,0.000946]
[1718278595706,0.82577743,67886.0,67885.0,0.000946]
[1718278596085,0.79267884,67886.0,67885.0,0.000946]
[1718278596889,0.77867884,67886.0,67885.0,0.000946]
[1718278597000,0.88206774,67886.0,67885.0,0.000946]
[1718278597229,0.90506948,67886.0,67885.0,0.000946]
[1718278597820,0.97998413,67886.0,67885.0,0.000946]
[1718278598033,0.59952402,67886.0,67885.0,0.000946]
[1718278598238,0.90508829,67886.0,67885.0,0.000946]
[1718278598444,0.97941829,67886.0,67885.0,0.000946]
[1718278598858,0.96541829,67886.0,67885.0,0.000946]
[1718278599058,0.96542027,67886.0,67885.0,0.000946]
[1718278599290,0.97942027,67886.0,67885.0,0.000946]
[1718278599505,1.06833566,67886.0,67885.0,0.000946]
[1718278599917,0.99342027,67886.0,67885.0,0.000946]
[1718278600111,1.05949424,67886.0,67885.0,0.000946]
[1718278600343,1.04549424,67886.0,67885.0,0.000946]
[1718278601423,1.05949424,67886.0,67885.0,0.000946]
[1718278601763,1.04549424,67886.0,67885.0,0.000946]
[1718278602162,1.05949424,67886.0,67885.0,0.000946]
[1718278602296,1.04549424,67886.0,67885.0,0.000946]
[1718278602711,1.05949424,67886.0,67885.0,0.000946]
[1718278603323,1.04548165,67886.0,67885.0,0.000946]
[1718278603532,1.05948165,67886.0,67885.0,0.000946]
[1718278604215,1.06503355,67886.0,67885.0,0.000946]
[1718278604541,1.07903355,67886.0,67885.0,0.000946]
[1718278604746,1.06503355,67886.0,67885.0,0.000946]
[1718278605155,1.07903355,67886.0,67885.0,0.000946]
[1718278605364,1.13798355,67886.0,67885.0,0.000946]
[1718278605753,1.12398355,67886.0,67885.0,0.000946]
[1718278606169,1.13798355,67886.0,67885.0,0.000946]
[1718278606370,1.39829902,67886.0,67885.0,0.000946]
[1718278606571,1.38429902,67886.0,67885.0,0.000946]
[1718278606793,1.44589902,67886.0,67885.0,0.000946]
[1718278606999,1.45989902,67886.0,67885.0,0.000946]
[1718278607845,1.45989902,67886.0,67880.0,0.21707573]
[1718278607846,0.5,67881.0,67880.0,0.21707573]
[1718278608048,0.83811993,67881.0,67880.0,0.21707573]
[1718278608250,1.1436966,67881.0,67880.0,0.21707573]
[1718278609060,1.27711903,67881.0,67880.0,0.21707573]
[1718278609260,1.29111946,67881.0,67880.0,0.21707573]
[1718278609442,1.40539141,67881.0,67880.0,0.21707573]
[1718278609873,1.39139141,67881.0,67880.0,0.21707573]
[1718278610117,1.39140015,67881.0,67880.0,0.21707573]
[1718278610346,1.40540015,67881.0,67880.0,0.21707573]
[1718278610984,1.39140015,67881.0,67880.0,0.21707573]
[1718278611211,1.39140092,67881.0,67880.0,0.21707573]
[1718278611451,1.40540092,67881.0,67880.0,0.21707573]
[1718278611868,1.73180623,67881.0,67880.0,0.21707573]
[1718278612308,1.80590485,67881.0,67880.0,0.21707573]
[1718278612556,1.37740092,67881.0,67880.0,0.21707573]
[1718278612778,1.17628099,67881.0,67880.0,0.21707573]
[1718278612972,1.14496247,67881.0,67880.0,0.35427573]
[1718278613188,0.86611993,67881.0,67880.0,0.35427573]
[1718278614209,0.85211993,67881.0,67880.0,0.35427573]
[1718278614608,0.86611993,67881.0,67880.0,0.35427573]
[1718278614811,0.99464291,67881.0,67880.0,0.35427573]
[1718278615340,0.79531993,67881.0,67880.0,0.35427573]
[1718278615546,0.86611993,67881.0,67880.0,0.35427573]
[1718278618115,0.79531993,67881.0,67880.0,0.35427573]
[1718278618320,0.86611993,67881.0,67880.0,0.35427573]
[1718278619316,0.84311993,67881.0,67880.0,0.35427573]
[1718278619520,0.93946968,67881.0,67880.0,0.35427573]
[1718278619726,0.86866968,67881.0,67880.0,0.35427573]
[1718278620039,0.93946968,67881.0,67880.0,0.35427573]
[1718278620457,0.27231993,67881.0,67880.0,0.47517288]
[1718278620862,0.17231993,67881.0,67880.0,0.47517288]
[1718278622150,0.28631993,67881.0,67880.0,0.47517288]
[1718278622486,0.25831993,67881.0,67880.0,0.47517288]
[1718278623161,0.27231993,67881.0,67880.0,0.47517288]
[1718278623711,0.25831993,67881.0,67880.0,0.47517288]
[1718278624112,0.27231993,67881.0,67880.0,0.47517288]
[1718278625540,0.27231993,67881.0,67880.0,0.35522173]
[1718278629255,0.27231993,67881.0,67880.0,0.47517288]
[1718278630413,0.27231993,67881.0,67880.0,0.35522173]
[1718278631468,0.27231993,67881.0,67880.0,0.47517288]
[1718278631879,0.27231993,67881.0,67880.0,0.35522173]
[1718278632597,0.27231993,67881.0,67880.0,0.47517288]
[1718278635707,0.17231993,67881.0,67880.0,0.47517288]
[1718278635914,0.00086,67885.0,67884.0,0.08]
[1718278636140,0.00086,67885.0,67884.0,0.44628321]
[1718278636722,0.00086,67885.0,67884.0,0.19553206]
[1718278636949,0.00086,67885.0,67884.0,0.31548321]
[1718278637164,0.00086,67885.0,67884.0,0.19553206]
[1718278637374,0.14517993,67885.0,67884.0,0.19553206]
[1718278637794,0.15917993,67885.0,67884.0,0.19553206]
[1718278637999,0.16117993,67885.0,67884.0,0.19553206]
[1718278638416,0.15917993,67885.0,67884.0,0.19553206]
[1718278638832,0.17117993,67885.0,67884.0,0.19653206]
[1718278639031,0.15917993,67885.0,67884.0,0.19553206]
[1718278639469,0.15617993,67885.0,67884.0,0.19653206]
[1718278639889,0.16817993,67885.0,67884.0,0.19753206]
[1718278640534,0.15617993,67885.0,67884.0,0.19653206]
[1718278640941,0.16817993,67885.0,67884.0,0.19753206]
[1718278641446,0.16817993,67885.0,67884.0,0.1476]
[1718278642084,0.19207792,67885.0,67884.0,0.19753206]
[1718278644670,0.16817993,67885.0,67884.0,0.19753206]
[1718278648603,0.36817993,67885.0,67884.0,0.19753206]
[1718278650771,0.43897993,67885.0,67884.0,0.002]
[1718278650994,0.97817545,67885.0,67884.0,0.002]
[1718278651186,1.12250218,67885.0,67884.0,0.002]
[1718278651424,1.16657446,67885.0,67884.0,0.002]
[1718278651555,1.12250218,67885.0,67884.0,0.002]
[1718278652734,1.14171922,67885.0,67884.0,0.002]
[1718278652916,1.23082764,67885.0,67884.0,0.002]
[1718278653494,1.20879689,67885.0,67884.0,0.002]
[1718278654152,0.90324532,67885.0,67884.0,0.002]
[1718278654391,1.20879581,67885.0,67884.0,0.002]
[1718278654600,1.16471814,67885.0,67884.0,0.002]
[1718278655875,1.23082656,67885.0,67884.0,0.002]
[1718278656055,0.92527607,67885.0,67884.0,0.002]
[1718278656428,1.16472738,67885.0,67884.0,0.002]
[1718278657400,1.57923983,67885.0,67884.0,0.002]
[1718278658499,1.49109526,67885.0,67884.0,0.002]
[1718278659181,1.27373459,67885.0,67884.0,0.002]
[1718278659388,1.57930062,67885.0,67884.0,0.002]
[1718278659565,1.49110156,67885.0,67884.0,0.002]
[1718278660188,1.49110208,67885.0,67884.0,0.002]
[1718278660342,1.60128279,67885.0,67884.0,0.002]
[1718278660592,1.60128619,67885.0,67884.0,0.002]
[1718278660820,1.60136913,67885.0,67884.0,0.002]
[1718278661038,1.60068094,67885.0,67884.0,0.002]
[1718278661248,1.60068151,67885.0,67884.0,0.002]
[1718278662100,1.27589395,67885.0,67884.0,0.002]
[1718278662324,1.47120912,67885.0,67884.0,0.002]
[1718278662536,1.58160453,67885.0,67884.0,0.002]
[1718278662944,1.55955343,67885.0,67884.0,0.002]
[1718278663530,1.58160572,67885.0,67884.0,0.002]
[1718278663973,1.47135924,67885.0,67884.0,0.002]
[1718278664621,1.48924021,67885.0,67884.0,0.002]
[1718278665447,1.59948669,67885.0,67884.0,0.002]
[1718278667226,1.48924214,67885.0,67884.0,0.002]
[1718278667464,1.59948862,67885.0,67884.0,0.002]
[1718278668168,1.48924214,67885.0,67884.0,0.002]
[1718278668363,1.59948862,67885.0,67884.0,0.002]
[1718278668985,1.48924214,67885.0,67884.0,0.002]
[1718278669176,1.48924174,67885.0,67884.0,0.002]
[1718278669535,1.48924272,67885.0,67884.0,0.002]
[1718278670812,1.64118497,67885.0,67884.0,0.002]
[1718278671011,0.5,67881.0,67880.0,0.205019]
[1718278671211,1.78907268,67881.0,67880.0,0.205019]
[1718278671416,1.81111542,67881.0,67880.0,0.205019]
[1718278671815,1.81995751,67881.0,67880.0,0.205019]
[1718278672440,1.74899067,67881.0,67880.0,0.205019]
[1718278672661,1.81094858,67881.0,67880.0,0.205019]
[1718278672908,1.70073491,67881.0,67880.0,0.205019]
[1718278673065,1.37435651,67881.0,67880.0,0.205019]
[1718278673248,1.71476236,67881.0,67880.0,0.205019]
[1718278673853,1.72876236,67881.0,67880.0,0.205019]
[1718278674277,1.83988858,67881.0,67880.0,0.205019]
[1718278674489,1.84873067,67881.0,67880.0,0.205019]
[1718278674847,1.73763067,67881.0,67880.0,0.205019]
[1718278675254,1.73763098,67881.0,67880.0,0.205019]
[1718278675884,1.65128594,67881.0,67880.0,0.205019]